[Event "*** Titled Tuesday Blitz"]
[Site "Chess.com"]
[Date "2019.06.04"]
[Round "1"]
[White "cool4chess"]
[Black "RitvarsReimanis"]
[Result "1-0"]
[WhiteElo "2349"]
[BlackElo "2651"]
[TimeControl "180+2"]
[EndTime "13:07:22 PDT"]
[Termination "cool4chess won by resignation"]

1. e4 {[%clk 0:03:01.2]} 1... c5 {[%clk 0:03:00.8]} 2. Nf3 {[%clk 0:03:02.5]}
2... Nc6 {[%clk 0:03:02.1]} 3. d4 {[%clk 0:03:03.7]} 3... cxd4 {[%clk 0:03:04]}
4. Nxd4 {[%clk 0:03:05.1]} 4... Nf6 {[%clk 0:03:05.9]} 5. Nc3 {[%clk 0:03:06.3]}
5... d6 {[%clk 0:03:07.4]} 6. Ndb5 {[%clk 0:03:07.9]} 6... a6 {[%clk 0:03:07.1]}
7. Nd4 {[%clk 0:03:05.5]} 7... e5 {[%clk 0:03:06.4]} 8. Nf3 {[%clk 0:03:06.6]}
8... Be7 {[%clk 0:03:04.2]} 9. Bg5 {[%clk 0:03:01.4]} 9... O-O {[%clk
0:03:03.6]} 10. Be2 {[%clk 0:02:57.2]} 10... Be6 {[%clk 0:03:02.6]} 11. O-O
{[%clk 0:02:57.2]} 11... h6 {[%clk 0:02:58.3]} 12. Bxf6 {[%clk 0:02:57.6]} 12...
Bxf6 {[%clk 0:02:58.5]} 13. Nd5 {[%clk 0:02:59.2]} 13... Bxd5 {[%clk 0:02:57.3]}
14. Qxd5 {[%clk 0:03:01.1]} 14... Qc7 {[%clk 0:02:41.4]} 15. c3 {[%clk
0:03:00.9]} 15... Ne7 {[%clk 0:02:41]} 16. Qb3 {[%clk 0:03:01.3]} 16... Ng6
{[%clk 0:02:34.7]} 17. g3 {[%clk 0:03:00.1]} 17... Rfd8 {[%clk 0:02:31.3]} 18.
Rfd1 {[%clk 0:03:00.8]} 18... Ne7 {[%clk 0:02:21.2]} 19. Nd2 {[%clk 0:02:46.7]}
19... d5 {[%clk 0:02:13]} 20. exd5 {[%clk 0:02:48.6]} 20... Nxd5 {[%clk
0:02:14.2]} 21. Ne4 {[%clk 0:02:49.9]} 21... Ne7 {[%clk 0:01:55.6]} 22. Nxf6+
{[%clk 0:02:50.1]} 22... gxf6 {[%clk 0:01:57.5]} 23. Bc4 {[%clk 0:02:45.9]}
23... Nf5 {[%clk 0:01:56.5]} 24. Qc2 {[%clk 0:02:32.4]} 24... Ne7 {[%clk
0:01:47.3]} 25. Bb3 {[%clk 0:02:16.3]} 25... Kg7 {[%clk 0:01:46.5]} 26. Qe4
{[%clk 0:02:16.2]} 26... Rxd1+ {[%clk 0:01:33.3]} 27. Rxd1 {[%clk 0:02:18.1]}
27... Rd8 {[%clk 0:01:32.3]} 28. Rxd8 {[%clk 0:02:15.9]} 28... Qxd8 {[%clk
0:01:33.6]} 29. Bc2 {[%clk 0:02:12]} 29... Ng6 {[%clk 0:01:24.7]} 30. Qxb7
{[%clk 0:02:11.9]} 30... a5 {[%clk 0:01:16.1]} 31. Bb3 {[%clk 0:02:03.9]} 31...
Nh8 {[%clk 0:01:13.9]} 32. Qd5 {[%clk 0:02:02.9]} 32... Qc7 {[%clk 0:01:12.7]}
33. Bc4 {[%clk 0:02:03.1]} 33... Ng6 {[%clk 0:01:06.8]} 34. b4 {[%clk
0:02:03.9]} 34... axb4 {[%clk 0:01:06.1]} 35. cxb4 {[%clk 0:02:05.8]} 35... Nf8
{[%clk 0:01:01.7]} 36. a4 {[%clk 0:02:02.4]} 36... Ne6 {[%clk 0:01:02.4]} 37. a5
{[%clk 0:02:00.2]} 37... Qe7 {[%clk 0:00:54]} 38. Qb5 {[%clk 0:01:54.1]} 38...
Nd4 {[%clk 0:00:53]} 39. Qc5 {[%clk 0:01:43.3]} 39... Qd7 {[%clk 0:00:42.3]} 40.
Qd5 {[%clk 0:01:43.3]} 40... Qe7 {[%clk 0:00:23.8]} 41. a6 {[%clk 0:01:39.7]}
41... Ne6 {[%clk 0:00:22.9]} 42. Qb7 {[%clk 0:01:40.3]} 42... Qd6 {[%clk
0:00:19.9]} 43. Bxe6 {[%clk 0:01:41.4]} 43... e4 {[%clk 0:00:20.1]} 44. Qxf7+
{[%clk 0:01:40]} 1-0

[Event "*** Titled Tuesday Blitz"]
[Site "Chess.com"]
[Date "2019.06.04"]
[Round "1"]
[White "HansCoolNiemann"]
[Black "GoingKronos"]
[Result "1-0"]
[WhiteElo "2686"]
[BlackElo "2340"]
[TimeControl "180+2"]
[EndTime "13:07:24 PDT"]
[Termination "HansCoolNiemann won on time"]

1. d4 {[%clk 0:03:01.9]} 1... e6 {[%clk 0:02:58.5]} 2. c4 {[%clk 0:03:02.9]}
2... Nf6 {[%clk 0:02:58.6]} 3. Nf3 {[%clk 0:03:04.2]} 3... b6 {[%clk 0:02:56.9]}
4. g3 {[%clk 0:03:05.1]} 4... Ba6 {[%clk 0:02:57]} 5. Qb3 {[%clk 0:03:05.5]}
5... Nc6 {[%clk 0:02:55.6]} 6. Nbd2 {[%clk 0:03:05.5]} 6... Na5 {[%clk
0:02:53.4]} 7. Qc3 {[%clk 0:03:06.1]} 7... Bb7 {[%clk 0:02:49.8]} 8. Bg2 {[%clk
0:02:59.1]} 8... c5 {[%clk 0:02:49.7]} 9. dxc5 {[%clk 0:02:59.1]} 9... bxc5
{[%clk 0:02:48.5]} 10. O-O {[%clk 0:02:59.8]} 10... Be7 {[%clk 0:02:41.8]} 11.
Re1 {[%clk 0:03:00.6]} 11... O-O {[%clk 0:02:39.3]} 12. e4 {[%clk 0:03:01.5]}
12... d6 {[%clk 0:02:40.5]} 13. b3 {[%clk 0:03:02.3]} 13... Nc6 {[%clk
0:02:38.1]} 14. Bb2 {[%clk 0:03:03.2]} 14... e5 {[%clk 0:02:38.9]} 15. Nf1
{[%clk 0:02:58.4]} 15... Nd4 {[%clk 0:02:38.1]} 16. N3d2 {[%clk 0:02:59.6]}
16... a5 {[%clk 0:02:35]} 17. a3 {[%clk 0:02:51.8]} 17... Qb6 {[%clk 0:02:34.5]}
18. Ne3 {[%clk 0:02:52.1]} 18... Rab8 {[%clk 0:02:32.7]} 19. Rab1 {[%clk
0:02:50.9]} 19... Bc6 {[%clk 0:02:23.9]} 20. Ba1 {[%clk 0:02:45.7]} 20... Nd7
{[%clk 0:02:13.3]} 21. Nd5 {[%clk 0:02:42.9]} 21... Bxd5 {[%clk 0:02:14.3]} 22.
cxd5 {[%clk 0:02:44.8]} 22... f5 {[%clk 0:02:13.2]} 23. Nc4 {[%clk 0:02:40]}
23... Qc7 {[%clk 0:02:14.1]} 24. Nxa5 {[%clk 0:02:34.8]} 24... Ra8 {[%clk
0:01:59.3]} 25. Nc6 {[%clk 0:02:22.1]} 25... Bf6 {[%clk 0:01:49.7]} 26. b4
{[%clk 0:02:17.1]} 26... g6 {[%clk 0:01:43.8]} 27. exf5 {[%clk 0:02:03.2]} 27...
gxf5 {[%clk 0:01:43.3]} 28. Bb2 {[%clk 0:02:00.6]} 28... Nb6 {[%clk 0:01:34.2]}
29. bxc5 {[%clk 0:01:59.8]} 29... Na4 {[%clk 0:01:34]} 30. cxd6 {[%clk
0:01:58.8]} 30... Qxd6 {[%clk 0:01:27]} 31. Qb4 {[%clk 0:01:50.5]} 31... Qxb4
{[%clk 0:01:26.9]} 32. axb4 {[%clk 0:01:52.4]} 32... Nxb2 {[%clk 0:01:28.1]} 33.
Rxb2 {[%clk 0:01:52.1]} 33... Rfc8 {[%clk 0:01:28.2]} 34. b5 {[%clk 0:01:51.3]}
34... e4 {[%clk 0:01:25]} 35. Rbb1 {[%clk 0:01:50.6]} 35... Ra2 {[%clk
0:01:23.1]} 36. b6 {[%clk 0:01:50.8]} 36... Nxc6 {[%clk 0:01:23.6]} 37. b7
{[%clk 0:01:52]} 37... Rb8 {[%clk 0:01:22.1]} 38. dxc6 {[%clk 0:01:53.1]} 38...
Rc2 {[%clk 0:01:22.6]} 39. Rec1 {[%clk 0:01:52.9]} 39... Rxc1+ {[%clk
0:01:22.4]} 40. Rxc1 {[%clk 0:01:54.8]} 40... Be5 {[%clk 0:01:23.7]} 41. c7
{[%clk 0:01:55.9]} 1-0

[Event "*** Titled Tuesday Blitz"]
[Site "Chess.com"]
[Date "2019.06.04"]
[Round "1"]
[White "Zubrrr"]
[Black "witcher8"]
[Result "1-0"]
[WhiteElo "2664"]
[BlackElo "2331"]
[TimeControl "180+2"]
[EndTime "13:07:35 PDT"]
[Termination "Zubrrr won on time"]

1. c4 {[%clk 0:03:01.9]} 1... e5 {[%clk 0:02:53.5]} 2. g3 {[%clk 0:03:03.2]}
2... Nc6 {[%clk 0:02:53.7]} 3. Bg2 {[%clk 0:03:04.4]} 3... g6 {[%clk 0:02:55.2]}
4. Nc3 {[%clk 0:03:05.6]} 4... Bg7 {[%clk 0:02:55.9]} 5. d3 {[%clk 0:03:06.8]}
5... f5 {[%clk 0:02:56.3]} 6. e4 {[%clk 0:03:06.1]} 6... d6 {[%clk 0:02:56.4]}
7. Nge2 {[%clk 0:03:07.2]} 7... Nf6 {[%clk 0:02:57]} 8. O-O {[%clk 0:03:08.5]}
8... O-O {[%clk 0:02:57.7]} 9. f4 {[%clk 0:03:09.6]} 9... Nd4 {[%clk 0:02:47.3]}
10. Kh1 {[%clk 0:02:58.5]} 10... fxe4 {[%clk 0:02:26.1]} 11. dxe4 {[%clk
0:02:58.9]} 11... Bg4 {[%clk 0:02:01.8]} 12. h3 {[%clk 0:02:56.3]} 12... Be6
{[%clk 0:01:56.9]} 13. Nxd4 {[%clk 0:02:41.3]} 13... exd4 {[%clk 0:01:58]} 14.
Qxd4 {[%clk 0:02:42.8]} 14... Qd7 {[%clk 0:01:59.5]} 15. f5 {[%clk 0:02:12.8]}
15... gxf5 {[%clk 0:01:56.1]} 16. exf5 {[%clk 0:02:13.5]} 16... Bxf5 {[%clk
0:01:53.7]} 17. Qh4 {[%clk 0:02:13.5]} 17... c6 {[%clk 0:01:46.5]} 18. Bh6
{[%clk 0:02:11.7]} 18... Bg6 {[%clk 0:01:35.5]} 19. Rad1 {[%clk 0:02:04.5]}
19... Bxh6 {[%clk 0:01:30]} 20. Qxh6 {[%clk 0:02:00.8]} 20... Qe6 {[%clk
0:01:24.7]} 21. Rfe1 {[%clk 0:01:44.4]} 21... Qxc4 {[%clk 0:01:04.6]} 22. Rxd6
{[%clk 0:01:44.3]} 22... Qc5 {[%clk 0:00:22.5]} 23. Re7 {[%clk 0:01:32.8]} 23...
Rf7 {[%clk 0:00:23.8]} 24. Rxf7 {[%clk 0:01:32.2]} 24... Kxf7 {[%clk 0:00:25.2]}
25. Rxf6+ {[%clk 0:01:30.5]} 25... Kg8 {[%clk 0:00:17.2]} 26. Rf1 {[%clk
0:01:05.2]} 26... Re8 {[%clk 0:00:11.9]} 27. Qf4 {[%clk 0:00:59.1]} 27... Rd8
{[%clk 0:00:04.5]} 28. Ne4 {[%clk 0:00:49.5]} 28... Qc2 {[%clk 0:00:02.6]} 29.
Nf6+ {[%clk 0:00:46.7]} 29... Kg7 {[%clk 0:00:03.7]} 30. Qc7+ {[%clk 0:00:45.1]}
1-0

[Event "*** Titled Tuesday Blitz"]
[Site "Chess.com"]
[Date "2019.06.04"]
[Round "1"]
[White "TigranLPetrosyan"]
[Black "axvesik"]
[Result "1-0"]
[WhiteElo "2835"]
[BlackElo "2436"]
[TimeControl "180+2"]
[EndTime "13:07:41 PDT"]
[Termination "TigranLPetrosyan won by resignation"]

1. Nf3 {[%clk 0:02:59.5]} 1... Nf6 {[%clk 0:03:00]} 2. g3 {[%clk 0:02:53.1]}
2... b6 {[%clk 0:02:59.9]} 3. Bg2 {[%clk 0:02:55]} 3... Bb7 {[%clk 0:03:01.2]}
4. O-O {[%clk 0:02:48.4]} 4... e6 {[%clk 0:03:02.1]} 5. d3 {[%clk 0:02:49.9]}
5... Be7 {[%clk 0:03:02.2]} 6. e4 {[%clk 0:02:51.1]} 6... d5 {[%clk 0:03:03.3]}
7. e5 {[%clk 0:02:49.8]} 7... Nfd7 {[%clk 0:03:04]} 8. Re1 {[%clk 0:02:51.7]}
8... c5 {[%clk 0:03:05.2]} 9. c4 {[%clk 0:02:51.9]} 9... dxc4 {[%clk 0:02:54.5]}
10. dxc4 {[%clk 0:02:48.3]} 10... Qc7 {[%clk 0:02:55.6]} 11. Nc3 {[%clk
0:02:48.2]} 11... a6 {[%clk 0:02:52.7]} 12. Bf4 {[%clk 0:02:49.4]} 12... Nc6
{[%clk 0:02:17.5]} 13. Nd5 {[%clk 0:02:48.7]} 13... Qd8 {[%clk 0:02:12.9]} 14.
Nxe7 {[%clk 0:02:39]} 14... Qxe7 {[%clk 0:02:13.9]} 15. Bg5 {[%clk 0:02:29.5]}
15... f6 {[%clk 0:02:10.6]} 16. exf6 {[%clk 0:02:29.2]} 16... gxf6 {[%clk
0:02:11.7]} 17. Bh3 {[%clk 0:02:16.5]} 17... Nf8 {[%clk 0:01:57.7]} 18. Bh6
{[%clk 0:02:09.6]} 18... e5 {[%clk 0:01:52.9]} 19. Qb3 {[%clk 0:02:02.5]} 19...
Qc7 {[%clk 0:01:41.1]} 20. Rad1 {[%clk 0:01:57.9]} 20... Nd4 {[%clk 0:01:33.7]}
21. Nxd4 {[%clk 0:01:50.3]} 21... cxd4 {[%clk 0:01:35.2]} 22. Rxd4 {[%clk
0:01:50.9]} 22... Qc6 {[%clk 0:01:30]} 23. Rd5 {[%clk 0:01:44.1]} 23... Ne6
{[%clk 0:01:19.1]} 24. Bg2 {[%clk 0:01:17.8]} 24... Kf7 {[%clk 0:01:10]} 25. Qd1
{[%clk 0:01:12.2]} 25... Rad8 {[%clk 0:01:03.9]} 26. Qh5+ {[%clk 0:01:09.9]}
26... Ke7 {[%clk 0:01:05.1]} 27. b3 {[%clk 0:00:58.1]} 27... b5 {[%clk
0:01:02.1]} 28. Red1 {[%clk 0:00:43.9]} 28... bxc4 {[%clk 0:00:59.9]} 29. Rd7+
{[%clk 0:00:43.7]} 29... Qxd7 {[%clk 0:00:53.9]} 30. Rxd7+ {[%clk 0:00:45.1]}
30... Rxd7 {[%clk 0:00:55.6]} 31. Bxb7 {[%clk 0:00:45.6]} 31... Rxb7 {[%clk
0:00:56.7]} 32. bxc4 {[%clk 0:00:46.9]} 32... Rc7 {[%clk 0:00:56.8]} 33. Bc1
{[%clk 0:00:45.7]} 33... Nc5 {[%clk 0:00:38.9]} 34. f4 {[%clk 0:00:43.5]} 34...
Rb8 {[%clk 0:00:31]} 35. fxe5 {[%clk 0:00:41]} 35... fxe5 {[%clk 0:00:29.2]} 36.
Qxe5+ {[%clk 0:00:41.9]} 36... Ne6 {[%clk 0:00:30.9]} 37. Ba3+ {[%clk
0:00:42.4]} 1-0

[Event "*** Titled Tuesday Blitz"]
[Site "Chess.com"]
[Date "2019.06.04"]
[Round "1"]
[White "aa175"]
[Black "hellokostya"]
[Result "0-1"]
[WhiteElo "2001"]
[BlackElo "2513"]
[TimeControl "180+2"]
[EndTime "13:07:47 PDT"]
[Termination "hellokostya won by resignation"]

1. e4 {[%clk 0:02:59.2]} 1... e5 {[%clk 0:02:56.5]} 2. Nf3 {[%clk 0:02:57.9]}
2... Nc6 {[%clk 0:02:53.6]} 3. Bc4 {[%clk 0:02:55.6]} 3... Bc5 {[%clk 0:02:54]}
4. Nc3 {[%clk 0:02:56.2]} 4... d6 {[%clk 0:02:53]} 5. d3 {[%clk 0:02:54.9]} 5...
Nf6 {[%clk 0:02:53.6]} 6. Be3 {[%clk 0:02:52.1]} 6... Bb6 {[%clk 0:02:43.7]} 7.
O-O {[%clk 0:02:46.4]} 7... h6 {[%clk 0:02:40.2]} 8. a3 {[%clk 0:02:36.7]} 8...
O-O {[%clk 0:02:37.6]} 9. h3 {[%clk 0:02:26.9]} 9... Qe7 {[%clk 0:02:24.4]} 10.
Ba2 {[%clk 0:02:21.3]} 10... Kh8 {[%clk 0:02:23.7]} 11. Qd2 {[%clk 0:02:17.8]}
11... Kh7 {[%clk 0:02:20.5]} 12. Ne2 {[%clk 0:02:00]} 12... Nh5 {[%clk
0:02:18.7]} 13. Kh2 {[%clk 0:01:47.6]} 13... Be6 {[%clk 0:02:13.2]} 14. b4
{[%clk 0:01:36.8]} 14... f5 {[%clk 0:01:59.6]} 15. exf5 {[%clk 0:01:09.7]} 15...
Rxf5 {[%clk 0:01:52.8]} 16. Ng3 {[%clk 0:01:06.6]} 16... Nxg3 {[%clk 0:01:42.8]}
17. fxg3 {[%clk 0:01:08.5]} 17... Bxa2 {[%clk 0:01:36.7]} 18. Rxa2 {[%clk
0:01:09.1]} 18... Raf8 {[%clk 0:01:37.8]} 19. Bxb6 {[%clk 0:01:03.1]} 19... axb6
{[%clk 0:01:38.4]} 20. Re1 {[%clk 0:01:00.5]} 20... Rh5 {[%clk 0:01:19.5]} 21.
g4 {[%clk 0:00:57.2]} 21... Rxf3 {[%clk 0:01:00.6]} 22. gxf3 {[%clk 0:00:50.2]}
22... Rg5 {[%clk 0:00:49]} 23. f4 {[%clk 0:00:45]} 23... Rg6 {[%clk 0:00:39.6]}
24. Qf2 {[%clk 0:00:38.8]} 24... Rf6 {[%clk 0:00:39.8]} 25. f5 {[%clk
0:00:38.6]} 25... Qf7 {[%clk 0:00:38]} 26. Rf1 {[%clk 0:00:37.2]} 26... Qxa2
{[%clk 0:00:37.8]} 27. Qh4 {[%clk 0:00:34.7]} 27... Qxc2+ {[%clk 0:00:37.5]} 28.
Rf2 {[%clk 0:00:35.9]} 28... Qc1 {[%clk 0:00:37.2]} 29. Rg2 {[%clk 0:00:34.7]}
29... Qg5 {[%clk 0:00:36.3]} 30. Qxg5 {[%clk 0:00:33.5]} 30... hxg5 {[%clk
0:00:38.2]} 31. Rc2 {[%clk 0:00:33.8]} 31... d5 {[%clk 0:00:38.2]} 32. b5 {[%clk
0:00:34.4]} 32... Nd4 {[%clk 0:00:36.9]} 33. Rxc7 {[%clk 0:00:36.3]} 33... Nxb5
{[%clk 0:00:36.8]} 34. Rxb7 {[%clk 0:00:37.2]} 34... Nxa3 {[%clk 0:00:37.2]} 35.
Rd7 {[%clk 0:00:37.8]} 35... d4 {[%clk 0:00:36.5]} 36. Rd5 {[%clk 0:00:38.8]}
36... b5 {[%clk 0:00:36]} 37. Rxe5 {[%clk 0:00:40]} 37... Rb6 {[%clk 0:00:36.3]}
0-1

[Event "*** Titled Tuesday Blitz"]
[Site "Chess.com"]
[Date "2019.06.04"]
[Round "1"]
[White "Jbd735"]
[Black "MatthewG-p4p"]
[Result "0-1"]
[WhiteElo "2426"]
[BlackElo "2798"]
[TimeControl "180+2"]
[EndTime "13:07:49 PDT"]
[Termination "MatthewG-p4p won by resignation"]

1. d4 {[%clk 0:03:01.2]} 1... Nf6 {[%clk 0:02:58]} 2. Nf3 {[%clk 0:03:01.4]}
2... c5 {[%clk 0:02:50.2]} 3. c3 {[%clk 0:02:52.5]} 3... e6 {[%clk 0:02:45.5]}
4. e3 {[%clk 0:02:47.6]} 4... b6 {[%clk 0:02:45.6]} 5. Bd3 {[%clk 0:02:46.7]}
5... Bb7 {[%clk 0:02:45.4]} 6. Nbd2 {[%clk 0:02:45.9]} 6... d6 {[%clk
0:02:35.1]} 7. O-O {[%clk 0:02:43.2]} 7... Be7 {[%clk 0:02:34.8]} 8. e4 {[%clk
0:02:41.1]} 8... Nbd7 {[%clk 0:02:33.1]} 9. Qe2 {[%clk 0:02:28.5]} 9... Qc7
{[%clk 0:02:32.4]} 10. a4 {[%clk 0:01:57.8]} 10... a6 {[%clk 0:02:32.2]} 11. e5
{[%clk 0:01:50.8]} 11... Nd5 {[%clk 0:02:31]} 12. Nc4 {[%clk 0:01:51.2]} 12...
dxe5 {[%clk 0:02:28.1]} 13. dxe5 {[%clk 0:01:49.1]} 13... O-O {[%clk 0:02:24.7]}
14. Re1 {[%clk 0:01:13.2]} 14... b5 {[%clk 0:02:23.2]} 15. axb5 {[%clk
0:01:13.5]} 15... axb5 {[%clk 0:02:25.1]} 16. Rxa8 {[%clk 0:01:14.6]} 16... Rxa8
{[%clk 0:02:25.6]} 17. Nd6 {[%clk 0:01:14.6]} 17... Nxe5 {[%clk 0:02:18.8]} 18.
Nxb5 {[%clk 0:00:37.9]} 18... Nxf3+ {[%clk 0:02:19]} 19. Qxf3 {[%clk 0:00:39.2]}
19... Qd7 {[%clk 0:02:16.1]} 20. Qh3 {[%clk 0:00:38.8]} 20... Nf6 {[%clk
0:02:13]} 21. Bg5 {[%clk 0:00:36.7]} 21... h6 {[%clk 0:02:12.3]} 22. Bf4 {[%clk
0:00:34.2]} 22... Ra2 {[%clk 0:02:04.8]} 23. Bc1 {[%clk 0:00:19.2]} 23... Ba6
{[%clk 0:01:48.9]} 24. c4 {[%clk 0:00:15]} 24... Bb7 {[%clk 0:01:49.9]} 25. Qe3
{[%clk 0:00:11.2]} 25... Qc6 {[%clk 0:01:42.2]} 26. f3 {[%clk 0:00:11.6]} 26...
Qd7 {[%clk 0:01:38]} 27. Nc3 {[%clk 0:00:11.7]} 27... Ra1 {[%clk 0:01:38.3]} 28.
Rd1 {[%clk 0:00:12.3]} 28... Qc7 {[%clk 0:01:37.7]} 29. Bc2 {[%clk 0:00:11.4]}
29... Ra8 {[%clk 0:01:32.8]} 30. Nb5 {[%clk 0:00:10.7]} 30... Qb6 {[%clk
0:01:28.3]} 31. Bd2 {[%clk 0:00:11.2]} 31... Bc6 {[%clk 0:01:28.9]} 32. Bc3
{[%clk 0:00:11.6]} 32... Bxb5 {[%clk 0:01:29.8]} 33. cxb5 {[%clk 0:00:13.5]}
33... Qxb5 {[%clk 0:01:31.7]} 34. Qe5 {[%clk 0:00:12.2]} 34... Qb6 {[%clk
0:01:26.6]} 35. Kh1 {[%clk 0:00:12.5]} 35... Rd8 {[%clk 0:01:25.4]} 36. Rxd8+
{[%clk 0:00:11.6]} 36... Qxd8 {[%clk 0:01:26.8]} 37. h3 {[%clk 0:00:12]} 37...
Bf8 {[%clk 0:01:26.4]} 38. Qf4 {[%clk 0:00:10.7]} 38... Nd5 {[%clk 0:01:26.9]}
39. Qe4 {[%clk 0:00:11.3]} 39... g6 {[%clk 0:01:27.5]} 40. Bd2 {[%clk 0:00:10]}
40... Bg7 {[%clk 0:01:28.2]} 41. b3 {[%clk 0:00:10.3]} 41... Nf6 {[%clk
0:01:27.3]} 42. Qe3 {[%clk 0:00:10.9]} 42... Nh5 {[%clk 0:01:28.4]} 43. Bc3
{[%clk 0:00:10.3]} 43... Ng3+ {[%clk 0:01:27.7]} 44. Kg1 {[%clk 0:00:10.3]}
44... Bxc3 {[%clk 0:01:29]} 45. Kf2 {[%clk 0:00:05.3]} 45... Bd4 {[%clk
0:01:29.6]} 0-1

[Event "*** Titled Tuesday Blitz"]
[Site "Chess.com"]
[Date "2019.06.04"]
[Round "1"]
[White "kleinebeer98"]
[Black "NoGalloNoParty"]
[Result "1-0"]
[WhiteElo "2693"]
[BlackElo "2351"]
[TimeControl "180+2"]
[EndTime "13:07:49 PDT"]
[Termination "kleinebeer98 won by checkmate"]

1. e4 {[%clk 0:03:00.5]} 1... c5 {[%clk 0:03:00.5]} 2. Nf3 {[%clk 0:03:01.5]}
2... d6 {[%clk 0:03:01.7]} 3. Nc3 {[%clk 0:03:00.6]} 3... a6 {[%clk 0:03:01.3]}
4. d4 {[%clk 0:03:01.3]} 4... cxd4 {[%clk 0:03:03.2]} 5. Nxd4 {[%clk 0:03:03.2]}
5... Nf6 {[%clk 0:03:03]} 6. Rg1 {[%clk 0:03:04.5]} 6... e5 {[%clk 0:02:49.6]}
7. Nb3 {[%clk 0:03:02.4]} 7... h5 {[%clk 0:02:42.2]} 8. h3 {[%clk 0:03:02.6]}
8... Be7 {[%clk 0:02:35.6]} 9. g4 {[%clk 0:03:03.2]} 9... hxg4 {[%clk
0:02:36.1]} 10. hxg4 {[%clk 0:03:05.1]} 10... Be6 {[%clk 0:02:31.5]} 11. g5
{[%clk 0:03:04.5]} 11... Nfd7 {[%clk 0:02:28.7]} 12. g6 {[%clk 0:03:01.4]} 12...
f6 {[%clk 0:02:28.5]} 13. Be3 {[%clk 0:02:59]} 13... Nb6 {[%clk 0:02:16.9]} 14.
Nd5 {[%clk 0:02:32.1]} 14... N8d7 {[%clk 0:02:12.2]} 15. c4 {[%clk 0:02:30.3]}
15... Rc8 {[%clk 0:02:04.2]} 16. Rc1 {[%clk 0:02:30.6]} 16... Na4 {[%clk
0:01:27.8]} 17. Qd2 {[%clk 0:02:16.7]} 17... Nac5 {[%clk 0:01:24.4]} 18. Nxc5
{[%clk 0:02:10.5]} 18... Nxc5 {[%clk 0:01:24.3]} 19. Qc2 {[%clk 0:02:01.2]}
19... Rh4 {[%clk 0:00:58.9]} 20. f3 {[%clk 0:01:43.4]} 20... Kf8 {[%clk
0:00:57.1]} 21. b4 {[%clk 0:01:41.6]} 21... Nd7 {[%clk 0:00:56.9]} 22. Qf2
{[%clk 0:01:42.4]} 22... Rh8 {[%clk 0:00:47.3]} 23. Bd3 {[%clk 0:01:39.6]} 23...
b5 {[%clk 0:00:42.6]} 24. cxb5 {[%clk 0:01:39.4]} 24... Rxc1+ {[%clk 0:00:41.2]}
25. Bxc1 {[%clk 0:01:41.3]} 25... axb5 {[%clk 0:00:41.6]} 26. Bxb5 {[%clk
0:01:43.2]} 26... Qc8 {[%clk 0:00:36.3]} 27. Qd2 {[%clk 0:01:30.7]} 27... Qb7
{[%clk 0:00:31.4]} 28. a4 {[%clk 0:01:28.5]} 28... Nb6 {[%clk 0:00:29]} 29. Nxb6
{[%clk 0:01:26.3]} 29... Qxb6 {[%clk 0:00:30.9]} 30. Qe3 {[%clk 0:01:28.2]}
30... Qc7 {[%clk 0:00:29.2]} 31. Bd2 {[%clk 0:01:23.3]} 31... Rh2 {[%clk
0:00:23.6]} 32. a5 {[%clk 0:01:11.5]} 32... Qc2 {[%clk 0:00:22.5]} 33. Qd3
{[%clk 0:01:05.1]} 33... Qb2 {[%clk 0:00:21.3]} 34. Qc3 {[%clk 0:00:56.5]} 34...
Qb1+ {[%clk 0:00:22.3]} 35. Qc1 {[%clk 0:00:58]} 35... Qb3 {[%clk 0:00:23]} 36.
Be2 {[%clk 0:00:53.1]} 36... d5 {[%clk 0:00:23]} 37. Qc7 {[%clk 0:00:43]} 37...
Bxb4 {[%clk 0:00:20]} 38. Qd8# {[%clk 0:00:43.2]} 1-0